fUST/lending_fUST_20241110
["ID","MTS","AMOUNT","RATE_DAILY","PERIOD"]
[341850438,1731253842763,-500.0,0.00024657,2]
[341850440,1731253842772,-500.0,0.00024657,2]
[341850441,1731253842781,-500.0,0.00024657,2]
[341850443,1731253842790,-500.0,0.00024657,2]
[341850446,1731253842800,-500.0,0.00024657,2]
[341850448,1731253842812,-550.6,0.00024657,2]
[341850450,1731253842821,-1542.78,0.00024657,2]
[341850452,1731253842833,-159.14045882,0.00024657,2]
[341850454,1731253842842,-500.0,0.00024657,2]
[341850456,1731253842852,-500.0,0.00024657,2]
[341850458,1731253842862,-500.0,0.00024657,2]
[341850460,1731253842871,-500.0,0.00024657,2]
[341850462,1731253842881,-500.0,0.00024657,2]
[341850464,1731253842891,-500.0,0.00024657,2]
[341850466,1731253842905,-1775.07,0.00024657,2]
[341850468,1731253842915,-503.74843027,0.00024657,2]
[341850470,1731253842924,-500.0,0.00024657,2]
[341850472,1731253842934,-737.44,0.00024657,2]
[341850474,1731253842945,-3099.99,0.00024657,2]
[341850476,1731253842955,-500.0,0.00024657,2]
[341850478,1731253842965,-500.0,0.00024657,2]
[341850480,1731253842976,-500.0,0.00024657,2]
[341850482,1731253842986,-510.92414685,0.00024657,2]
[341850484,1731253842995,-500.0,0.00024657,2]
[341850486,1731253843006,-579.96856206,0.00024657,2]
[341850488,1731253843015,-500.0,0.00024657,2]
[341850490,1731253843025,-509.92074753,0.00024657,2]
[341850492,1731253843034,-568.1040556,0.00024657,2]
[341850494,1731253843046,-500.0,0.00024657,2]
[341850496,1731253843055,-195.9730966,0.00024657,2]
[341850498,1731253843066,-500.0,0.00024657,2]
[341850500,1731253843075,-500.0,0.00024657,2]
[341850502,1731253843087,-500.0,0.00024657,2]
[341850504,1731253843096,-500.0,0.00024657,2]
[341850506,1731253843106,-500.0,0.00024657,2]
[341850508,1731253843115,-500.0,0.00024657,2]
[341850510,1731253843125,-500.0,0.00024657,2]
[341850512,1731253843134,-500.0,0.00024657,2]
[341850514,1731253843143,-500.0,0.00024657,2]
[341850516,1731253843153,-665.47,0.00024657,2]
[341850518,1731253843162,-549.35108552,0.00024657,2]
[341850520,1731253843171,-500.0,0.00024657,2]
[341850522,1731253843180,-2554.57,0.00024657,2]
[341850524,1731253843189,-500.0,0.00024657,2]
[341850526,1731253843199,-500.0,0.00024657,2]
[341850528,1731253843208,-500.0,0.00024657,2]
[341850530,1731253843217,-1000.0,0.00024657,2]
[341850532,1731253843227,-500.0,0.00024657,2]
[341850534,1731253843236,-500.0,0.00024657,2]
[341850536,1731253843246,-500.0,0.00024657,2]
[341850538,1731253843255,-569.62636191,0.00024657,2]
[341850541,1731253843265,-500.0,0.00024657,2]
[341850543,1731253843275,-500.0,0.00024657,2]
[341850545,1731253843285,-500.0,0.00024657,2]
[341850548,1731253843294,-500.0,0.00024657,2]
[341850550,1731253843304,-500.0,0.00024657,2]
[341850552,1731253843313,-500.0,0.00024657,2]
[341850554,1731253843323,-500.0,0.00024657,2]
[341850556,1731253843333,-884.37,0.00024657,2]
[341850558,1731253843342,-199.76,0.00024657,2]
[341850560,1731253843351,-500.0,0.00024657,2]
[341850562,1731253843360,-500.0,0.00024657,2]
[341850564,1731253843370,-509.17130644,0.00024657,2]
[341850566,1731253843379,-506.92795942,0.00024657,2]
[341850568,1731253843388,-500.0,0.00024657,2]
[341850569,1731253843398,-500.0,0.00024657,2]
[341850571,1731253843407,-500.0,0.00024657,2]
[341850573,1731253843417,-500.0,0.00024657,2]
[341850575,1731253843426,-500.0,0.00024657,2]
[341850577,1731253843436,-773.0,0.00024657,2]
[341850579,1731253843445,-180.38531866,0.00024657,2]
[341850581,1731253843455,-500.0,0.00024657,2]
[341850583,1731253843465,-525.17339451,0.00024657,2]
[341850586,1731253843475,-604.66,0.00024657,2]
[341850587,1731253843484,-500.0,0.00024657,2]
[341850590,1731253843494,-517.8,0.00024657,2]
[341850591,1731253843503,-519.08108315,0.00024657,2]
[341850594,1731253843513,-500.0,0.00024657,2]
[341850596,1731253843522,-507.95479792,0.00024657,2]
[341850598,1731253843531,-313.28982671,0.00024657,2]
[341850599,1731253843541,-500.0,0.00024657,2]
[341850601,1731253843550,-500.0,0.00024657,2]
[341850603,1731253843559,-500.0,0.00024657,2]
[341850606,1731253843568,-507.58644192,0.00024657,2]
[341850608,1731253843578,-500.0,0.00024657,2]
[341850610,1731253843590,-501.02768452,0.00024657,2]
[341850612,1731253843599,-500.0,0.00024657,2]
[341850613,1731253843608,-500.0,0.00024657,2]
[341850616,1731253843618,-500.0,0.00024657,2]
[341850617,1731253843627,-500.0,0.00024657,2]
[341850619,1731253843636,-501.14916247,0.00024657,2]
[341850621,1731253843646,-500.0,0.00024657,2]
[341850623,1731253843655,-500.0,0.00024657,2]
[341850625,1731253843664,-244.26158918,0.00024657,2]
[341850627,1731253843673,-500.0,0.00024657,2]
[341850629,1731253843683,-500.0,0.00024657,2]
[341850631,1731253843692,-500.0,0.00024657,2]
[341850633,1731253843702,-223.58186838,0.00024657,2]
[341850635,1731253843712,-529.14337196,0.00024657,2]
[341850638,1731253843722,-500.0,0.00024657,2]
[341850640,1731253843732,-4489.52,0.00024657,2]
[341850641,1731253843741,-500.0,0.00024657,2]
[341850643,1731253843751,-500.0,0.00024657,2]
[341850645,1731253843760,-534.9169993,0.00024657,2]
[341850647,1731253843770,-500.0,0.00024657,2]
[341850650,1731253843780,-500.0,0.00024657,2]
[341850652,1731253843789,-500.0,0.00024657,2]
[341850653,1731253843799,-500.0,0.00024657,2]
[341850655,1731253843808,-500.0,0.00024657,2]
[341850657,1731253843818,-1008.94,0.00024657,2]
[341850660,1731253843827,-416.22131605,0.00024657,2]
[341850662,1731253843842,-500.0,0.00024657,2]
[341850664,1731253843851,-500.0,0.00024657,2]
[341850666,1731253843860,-500.0,0.00024657,2]
[341850668,1731253843870,-522.01435094,0.00024657,2]
[341850669,1731253843879,-500.0,0.00024657,2]
[341850684,1731253844004,-500.0,0.00024657,2]
[341850686,1731253844014,-706.19,0.00024657,2]
[341850688,1731253844024,-794.89,0.00024657,2]
[341850690,1731253844034,-500.0,0.00024657,2]
[341850692,1731253844044,-500.0,0.00024657,2]
[341850694,1731253844053,-500.0,0.00024657,2]
[341850696,1731253844063,-507.00908783,0.00024657,2]
[341850698,1731253844072,-500.0,0.00024657,2]
[341850700,1731253844085,-500.0,0.00024657,2]
[341850702,1731253844094,-523.5715383,0.00024657,2]
[341850704,1731253844103,-500.0,0.00024657,2]
[341850706,1731253844113,-500.0,0.00024657,2]
[341850708,1731253844122,-500.0,0.00024657,2]
[341850710,1731253844135,-500.0,0.00024657,2]
[341850712,1731253844144,-500.0,0.00024657,2]
[341850714,1731253844155,-500.0,0.00024657,2]
[341850716,1731253844164,-500.0,0.00024657,2]
[341850718,1731253844174,-500.0,0.00024657,2]
[341850720,1731253844184,-500.0,0.00024657,2]
[341850722,1731253844193,-506.87039709,0.00024657,2]
[341850724,1731253844202,-229.6212196,0.00024657,2]
[341850726,1731253844212,-507.24668299,0.00024657,2]
[341850728,1731253844221,-500.0,0.00024657,2]
[341850730,1731253844230,-616.96,0.00024657,2]
[341850732,1731253844239,-500.0,0.00024657,2]
[341850734,1731253844248,-609.07,0.00024657,2]
[341850736,1731253844257,-500.0,0.00024657,2]
[341850738,1731253844267,-759.03,0.00024657,2]
[341850740,1731253844276,-500.0,0.00024657,2]
[341850742,1731253844284,-500.0,0.00024657,2]
[341850744,1731253844294,-500.0,0.00024657,2]
[341850746,1731253844303,-577.97,0.00024657,2]
[341850748,1731253844314,-500.0,0.00024657,2]
[341850750,1731253844324,-500.0,0.00024657,2]
[341850752,1731253844337,-500.0,0.00024657,2]
[341850754,1731253844349,-515.7945876,0.00024657,2]
[341850756,1731253844359,-1114.6,0.00024657,2]
[341850758,1731253844375,-500.0,0.00024657,2]
[341850760,1731253844409,-697.98,0.00024657,2]
[341850762,1731253844477,-500.0,0.00024657,2]
[341850763,1731253844587,-500.0,0.00024657,2]
[341850765,1731253844666,-595.69,0.00024657,2]
[341850767,1731253844738,-500.0,0.00024657,2]
[341850769,1731253844859,-500.0,0.00024657,2]
[341850771,1731253844948,-506.20289812,0.00024657,2]
[341850773,1731253845074,-500.0,0.00024657,2]
[341850775,1731253845169,-636.49,0.00024657,2]
[341850777,1731253845268,-792.06,0.00024657,2]
[341850779,1731253845368,-500.0,0.00024657,2]
[341850780,1731253845390,-6674.39,0.00024657,2]
[341850781,1731253845400,-500.0,0.00024657,2]
[341850783,1731253845410,-1148.62,0.00024657,2]
[341850785,1731253845420,-2336.0,0.00024657,2]
[341850787,1731253845430,-3005.43,0.00024657,2]
[341850789,1731253845440,-500.0,0.00024657,2]
[341850791,1731253845449,-500.0,0.00024657,2]
[341850793,1731253845459,-538.18870807,0.00024657,2]
[341850795,1731253845468,-500.0,0.00024657,2]
[341850797,1731253845478,-735.49,0.00024657,2]
[341850799,1731253845487,-511.73934386,0.00024657,2]
[341850801,1731253845496,-500.0,0.00024657,2]
[341850804,1731253845506,-500.0,0.00024657,2]
[341850806,1731253845517,-500.0,0.00024657,2]
[341850807,1731253845527,-500.0,0.00024657,2]
[341850810,1731253845537,-500.0,0.00024657,2]
[341850812,1731253845547,-500.0,0.00024657,2]
[341850814,1731253845557,-981.14,0.00024657,2]
[341850816,1731253845567,-981.14,0.00024657,2]
[341850818,1731253845576,-981.14,0.00024657,2]
[341850820,1731253845589,-981.14,0.00024657,2]
[341850821,1731253845598,-500.0,0.00024657,2]
[341850822,1731253845608,-981.14,0.00024657,2]
[341850823,1731253845617,-981.14,0.00024657,2]
[341850824,1731253845626,-981.14,0.00024657,2]
[341850825,1731253845635,-981.14,0.00024657,2]
[341850826,1731253845644,-500.0,0.00024657,2]
[341850827,1731253845653,-500.0,0.00024657,2]
[341850828,1731253845662,-981.14,0.00024657,2]
[341850829,1731253845671,-233.59299236,0.00024657,2]
[341850830,1731253845680,-500.0,0.00024657,2]
[341850831,1731253845690,-296.45032388,0.00024657,2]
[341850832,1731253845699,-500.0,0.00024657,2]
[341850833,1731253845708,-500.0,0.00024657,2]
[341850834,1731253845717,-500.0,0.00024657,2]
[341850835,1731253845726,-500.0,0.00024657,2]
[341850836,1731253845735,-500.0,0.00024657,2]
[341850837,1731253845745,-640.68,0.00024657,2]
[341850838,1731253845755,-500.0,0.00024657,2]
[341850839,1731253845764,-500.0,0.00024657,2]
[341850840,1731253845773,-1186.72,0.00024657,2]
[341850841,1731253845783,-500.0,0.00024657,2]
[341850842,1731253845794,-500.0,0.00024657,2]
[341850843,1731253845803,-908.34,0.00024657,2]
[341850844,1731253845813,-500.0,0.00024657,2]
[341850845,1731253845821,-500.0,0.00024657,2]
[341850846,1731253845830,-500.0,0.00024657,2]
[341850847,1731253845844,-1327.14,0.00024657,2]
[341850848,1731253845853,-502.39003401,0.00024657,2]
[341850849,1731253845862,-500.0,0.00024657,2]
[341850850,1731253845871,-500.0,0.00024657,2]
[341850851,1731253845881,-500.0,0.00024657,2]
[341850852,1731253845890,-406.06965389,0.00024657,2]
[341850853,1731253845902,-500.0,0.00024657,2]
[341850854,1731253845912,-500.0,0.00024657,2]
[341850855,1731253845922,-500.0,0.00024657,2]
[341850856,1731253845932,-500.0,0.00024657,2]
[341850857,1731253845942,-931.89,0.00024657,2]
[341850858,1731253845952,-602.88,0.00024657,2]
[341850859,1731253845961,-500.0,0.00024657,2]
[341850860,1731253845972,-200.0,0.00024657,2]
[341850861,1731253845983,-500.0,0.00024657,2]
[341850862,1731253845992,-13953.42,0.00024657,2]
[341850863,1731253846002,-486.58628128,0.00024657,2]
[341850864,1731253846012,-512.84,0.00024657,2]
[341850865,1731253846021,-1220.48,0.00024657,2]
[341850866,1731253846031,-500.0,0.00024657,2]
[341850867,1731253846040,-500.0,0.00024657,2]
[341850868,1731253846050,-500.0,0.00024657,2]
[341850869,1731253846061,-500.0,0.00024657,2]
[341850870,1731253846070,-267.7884197,0.00024657,2]
[341850871,1731253846080,-500.0,0.00024657,2]
[341850872,1731253846093,-500.0,0.00024657,2]
[341850873,1731253846102,-5958.88,0.00024657,2]
[341850874,1731253846112,-5958.88,0.00024657,2]
[341850875,1731253846122,-5958.88,0.00024657,2]
[341850876,1731253846132,-5958.88,0.00024657,2]
[341850877,1731253846141,-5958.88,0.00024657,2]
[341850878,1731253846150,-5958.88,0.00024657,2]
[341850879,1731253846161,-5958.88,0.00024657,2]
[341850880,1731253846170,-5958.88,0.00024657,2]
[341850881,1731253846179,-500.0,0.00024657,2]
[341850882,1731253846189,-581.11,0.00024657,2]
[341850883,1731253846199,-500.0,0.00024657,2]
[341850884,1731253846209,-500.0,0.00024657,2]
[341850885,1731253846218,-500.0,0.00024657,2]
[341850886,1731253846228,-500.0,0.00024657,2]
[341850887,1731253846239,-500.0,0.00024657,2]
[341850888,1731253846248,-500.0,0.00024657,2]
[341850890,1731253846258,-1088.59,0.00024657,2]
[341850891,1731253846268,-1092.97,0.00024657,2]
[341850892,1731253846277,-500.0,0.00024657,2]
[341850893,1731253846286,-500.0,0.00024657,2]
[341850894,1731253846296,-500.0,0.00024657,2]
[341850895,1731253846305,-500.0,0.00024657,2]
[341850896,1731253846315,-525.63,0.00024657,2]
[341850897,1731253846324,-500.0,0.00024657,2]
[341850898,1731253846334,-1925.68,0.00024657,2]
[341850899,1731253846343,-500.0,0.00024657,2]
[341850900,1731253846354,-236.31625125,0.00024657,2]
[341850901,1731253846363,-610.47796792,0.00024657,2]
[341850902,1731253846372,-500.0,0.00024657,2]
[341850903,1731253846382,-213.04259577,0.00024657,2]
[341850904,1731253846392,-500.0,0.00024657,2]
[341850906,1731253846402,-592.29027667,0.00024657,2]
[341850908,1731253846411,-500.0,0.00024657,2]
[341850910,1731253846421,-500.0,0.00024657,2]
[341850912,1731253846431,-500.0,0.00024657,2]
[341850914,1731253846441,-500.0,0.00024657,2]
[341850916,1731253846450,-500.0,0.00024657,2]
[341850918,1731253846460,-573.30123702,0.00024657,2]
[341850920,1731253846470,-649.1,0.00024657,2]
[341850921,1731253846479,-670.55,0.00024657,2]
[341850922,1731253846489,-500.0,0.00024657,2]
[341850923,1731253846499,-500.0,0.00024657,2]
[341850924,1731253846509,-500.0,0.00024657,2]
[341850925,1731253846519,-500.0,0.00024657,2]
[341850926,1731253846529,-2454.06,0.00024657,2]
[341850927,1731253846539,-500.0,0.00024657,2]
[341850928,1731253846550,-500.0,0.00024657,2]
[341850929,1731253846560,-505.84372696,0.00024657,2]
[341850930,1731253846570,-1438.84,0.00024657,2]
[341850931,1731253846580,-200.0,0.00024657,2]
[341850932,1731253846592,-895.47,0.00024657,2]
[341850933,1731253846602,-1092.65,0.00024657,2]
[341850935,1731253846612,-500.0,0.00024657,2]
[341850936,1731253846623,-500.0,0.00024657,2]
[341850937,1731253846633,-1480.6,0.00024657,2]
[341850938,1731253846642,-500.0,0.00024657,2]
[341850939,1731253846652,-1037.92,0.00024657,2]
[341850940,1731253846661,-500.0,0.00024657,2]
[341850941,1731253846672,-500.0,0.00024657,2]
[341850942,1731253846681,-500.0,0.00024657,2]
[341850943,1731253846691,-500.0,0.00024657,2]
[341850944,1731253846701,-571.86,0.00024657,2]
[341850945,1731253846711,-500.0,0.00024657,2]
[341850946,1731253846720,-500.0,0.00024657,2]
[341850947,1731253846730,-500.0,0.00024657,2]
[341850948,1731253846740,-500.0,0.00024657,2]
[341850949,1731253846750,-500.0,0.00024657,2]
[341850950,1731253846760,-550.09,0.00024657,2]
[341850951,1731253846770,-500.0,0.00024657,2]
[341850952,1731253846781,-876.75,0.00024657,2]
[341850953,1731253846790,-500.0,0.00024657,2]
[341850954,1731253846800,-500.0,0.00024767,2]
[341850955,1731253846811,-366.56192099,0.00024767,2]
[341850956,1731253846820,-500.0,0.00024767,2]
[341850957,1731253846830,-500.0,0.00024767,2]
[341850958,1731253846842,-500.0,0.00024767,2]
[341850959,1731253846852,-500.0,0.00024767,2]
[341850960,1731253846862,-500.0,0.00024767,2]
[341850961,1731253846872,-500.0,0.00024767,2]
[341850962,1731253846882,-500.0,0.00024767,2]
[341850963,1731253846893,-500.0,0.00024767,2]
[341850964,1731253846906,-500.0,0.00024767,2]
[341850965,1731253846915,-500.0,0.00024767,2]
[341850966,1731253846925,-500.0,0.00024767,2]
[341850967,1731253846935,-531.6026644,0.00024767,2]
[341850968,1731253846944,-500.0,0.00024767,2]
[341850969,1731253846954,-500.0,0.00024767,2]
[341850970,1731253846964,-500.0,0.00024767,2]
[341850971,1731253846973,-500.0,0.00024767,2]
[341850972,1731253846984,-500.0,0.00024767,2]
[341850973,1731253846995,-500.0,0.00024767,2]
[341850974,1731253847005,-500.0,0.00024767,2]
[341850975,1731253847015,-500.0,0.00024767,2]
[341850976,1731253847025,-500.0,0.00024767,2]
[341850977,1731253847034,-500.0,0.00024767,2]
[341850978,1731253847045,-500.0,0.00024767,2]
[341850979,1731253847055,-500.0,0.00024767,2]
[341850980,1731253847065,-500.0,0.00024767,2]
[341850981,1731253847075,-500.0,0.00024767,2]
[341850982,1731253847086,-500.0,0.00024767,2]
[341850983,1731253847097,-500.0,0.00024767,2]
[341850984,1731253847109,-500.0,0.00024767,2]
[341850985,1731253847223,-330.6721019,0.00024767,2]
[341850986,1731253847233,-213.190194,0.00024767,2]
[341850987,1731253847244,-500.0,0.00024767,2]
[341850988,1731253847254,-500.0,0.00024767,2]
[341850989,1731253847263,-500.0,0.00024767,2]
[341850990,1731253847273,-500.0,0.00024767,2]
[341850991,1731253847282,-500.0,0.00024767,2]
[341850992,1731253847292,-500.0,0.00024767,2]
[341850993,1731253847302,-500.0,0.00024767,2]
[341850994,1731253847313,-500.0,0.00024767,2]
[341850995,1731253847322,-500.0,0.00024767,2]
[341850996,1731253847332,-393.6355059,0.00024767,2]
[341850997,1731253847346,-500.0,0.00024767,2]
[341850998,1731253847356,-500.0,0.00024767,2]
[341850999,1731253847366,-500.0,0.00024767,2]
[341851000,1731253847375,-500.0,0.00024767,2]
[341851001,1731253847385,-500.0,0.00024767,2]
[341851002,1731253847394,-500.0,0.00024767,2]
[341851003,1731253847404,-500.0,0.00024767,2]
[341851004,1731253847414,-500.0,0.00024767,2]
[341851005,1731253847423,-500.0,0.00024767,2]
[341851006,1731253847432,-500.0,0.00024767,2]
[341851007,1731253847442,-2495.33784268,0.00024768,2]
[341851008,1731253847452,-3278.40356913,0.00024831,2]
[341851009,1731253847462,-981.14,0.00024929,2]
[341851010,1731253847472,-981.14,0.00024929,2]
[341851011,1731253847481,-5958.88,0.00024929,2]
[341851012,1731253847490,-981.14,0.0002493,2]
[341851013,1731253847499,-981.14,0.0002493,2]
[341851014,1731253847509,-981.14,0.0002493,2]
[341851015,1731253847518,-981.14,0.0002493,2]
[341851016,1731253847528,-981.14,0.0002493,2]
[341851017,1731253847538,-981.14,0.0002493,2]
[341851018,1731253847547,-981.14,0.0002493,2]
[341851019,1731253847556,-981.14,0.0002493,2]
[341851020,1731253847565,-981.14,0.0002493,2]
[341851021,1731253847574,-981.14,0.0002493,2]
[341851022,1731253847584,-981.14,0.0002493,2]
[341851023,1731253847594,-981.14,0.0002493,2]
[341851024,1731253847603,-981.27569267,0.0002493,2]
[341851025,1731253847613,-5958.88,0.0002493,2]
[341851026,1731253847622,-5958.88,0.0002493,2]
[341851027,1731253847632,-5958.88,0.0002493,2]
[341851028,1731253847640,-5958.88,0.0002493,2]
[341851029,1731253847650,-5958.88,0.0002493,2]
[341851030,1731253847659,-5958.88,0.0002493,2]
[341851031,1731253847668,-5958.88,0.0002493,2]
[341851032,1731253847677,-5958.88,0.0002493,2]
[341851033,1731253847686,-500.0,0.00024931,2]
[341851034,1731253847697,-500.0,0.00024931,2]
[341851035,1731253847706,-500.0,0.00024931,2]
[341851036,1731253847715,-500.0,0.00024931,2]
[341851037,1731253847725,-500.0,0.00024931,2]
[341851038,1731253847734,-500.0,0.00024931,2]
[341851039,1731253847744,-500.0,0.00024931,2]
[341851040,1731253847756,-500.0,0.00024931,2]
[341851041,1731253847766,-500.0,0.00024931,2]
[341851042,1731253847775,-500.0,0.00024931,2]
[341851043,1731253847784,-500.0,0.00024931,2]
[341851044,1731253847793,-500.0,0.00024931,2]
[341851045,1731253847805,-500.0,0.00024931,2]
[341851046,1731253847814,-500.0,0.00024931,2]
[341851047,1731253847823,-500.0,0.00024931,2]
[341851048,1731253847833,-536.88,0.00024931,2]
[341851049,1731253847843,-500.0,0.00024931,2]
[341851050,1731253847853,-500.0,0.00024931,2]
[341851051,1731253847862,-500.0,0.00024931,2]
[341851052,1731253847871,-500.0,0.00024931,2]
[341851053,1731253847881,-500.0,0.00024931,2]
[341851054,1731253847891,-500.0,0.00024931,2]
[341851055,1731253847903,-500.0,0.00024931,2]
[341851056,1731253847912,-500.0,0.00024931,2]
[341851057,1731253847922,-509.9384297,0.00024931,2]
[341851058,1731253847931,-500.0,0.00024931,2]
[341851059,1731253847941,-500.0,0.00024931,2]
[341851060,1731253847950,-500.0,0.00024931,2]
[341851061,1731253847959,-511.44117033,0.00024931,2]
[341851062,1731253847969,-500.0,0.00024931,2]
[341851063,1731253847981,-500.0,0.00024931,2]
[341851064,1731253847991,-250.0,0.00024931,2]
[341851065,1731253848001,-437.97124133,0.00024931,2]
[341851066,1731253848010,-254.87386487,0.00024931,2]
[341851067,1731253848019,-500.0,0.00024931,2]
[341851068,1731253848029,-500.0,0.00024931,2]
[341851069,1731253848038,-1171.48,0.00024931,2]
[341851070,1731253848047,-500.0,0.00024931,2]
[341851071,1731253848057,-500.0,0.00024931,2]
[341851072,1731253848067,-500.0,0.00024931,2]
[341851073,1731253848077,-500.0,0.00024931,2]
[341851074,1731253848087,-500.0,0.00024931,2]
[341851075,1731253848098,-571.26,0.00024931,2]
[341851076,1731253848107,-500.0,0.00024931,2]
[341851077,1731253848117,-500.0,0.00024931,2]
[341851078,1731253848128,-500.0,0.00024931,2]
[341851080,1731253848138,-500.0,0.00024931,2]
[341851082,1731253848148,-4034.2,0.00024931,2]
[341851084,1731253848157,-500.0,0.00024931,2]
[341851086,1731253848166,-500.0,0.00024931,2]
[341851087,1731253848176,-509.47877856,0.00024931,2]
[341851089,1731253848185,-500.0,0.00024931,2]
[341851091,1731253848195,-1065.7,0.00024931,2]
[341851093,1731253848204,-500.0,0.00024931,2]
[341851095,1731253848215,-913.68,0.00024931,2]
[341851098,1731253848225,-500.0,0.00024931,2]
[341851100,1731253848234,-500.0,0.00024931,2]
[341851101,1731253848244,-500.0,0.00024931,2]
[341851103,1731253848253,-500.0,0.00024931,2]
[341851105,1731253848262,-550.6,0.00024931,2]
[341851107,1731253848272,-1542.78,0.00024931,2]
[341851109,1731253848281,-1775.07,0.00024931,2]
[341851111,1731253848291,-500.0,0.00024931,2]
[341851112,1731253848300,-737.44,0.00024931,2]
[341851114,1731253848309,-3099.99,0.00024931,2]
[341851115,1731253848320,-500.0,0.00024931,2]
[341851116,1731253848330,-500.0,0.00024931,2]
[341851117,1731253848341,-500.0,0.00024931,2]
[341851118,1731253848351,-500.0,0.00024931,2]
[341851119,1731253848360,-500.0,0.00024931,2]
[341851120,1731253848370,-500.0,0.00024931,2]
[341851121,1731253848380,-665.47,0.00024931,2]
[341851122,1731253848389,-500.0,0.00024931,2]
[341851123,1731253848399,-2554.57,0.00024931,2]
[341851124,1731253848409,-500.0,0.00024931,2]
[341851125,1731253848418,-1000.0,0.00024931,2]
[341851126,1731253848428,-535.59079288,0.00024931,2]
[341851127,1731253848438,-500.0,0.00024931,2]
[341851128,1731253848447,-500.0,0.00024931,2]
[341851129,1731253848457,-500.0,0.00024931,2]
[341851130,1731253848467,-500.0,0.00024931,2]
[341851131,1731253848477,-500.0,0.00024931,2]
[341851132,1731253848487,-500.0,0.00024931,2]
[341851133,1731253848497,-500.0,0.00024931,2]
[341851134,1731253848506,-884.37,0.00024931,2]
[341851135,1731253848516,-500.0,0.00024931,2]
[341851136,1731253848526,-253.94922167,0.00024931,2]
[341851137,1731253848535,-773.0,0.00024931,2]
[341851138,1731253848544,-500.0,0.00024931,2]
[341851139,1731253848554,-604.66,0.00024931,2]
[341851140,1731253848563,-500.0,0.00024931,2]
[341851141,1731253848573,-517.8,0.00024931,2]
[341851142,1731253848582,-500.0,0.00024931,2]
[341851143,1731253848596,-500.0,0.00024931,2]
[341851144,1731253848606,-500.0,0.00024931,2]
[341851145,1731253848615,-500.0,0.00024931,2]
[341851146,1731253848625,-500.0,0.00024931,2]
[341851147,1731253848635,-500.0,0.00024931,2]
[341851148,1731253848645,-443.40573607,0.00024931,2]
[341851149,1731253848655,-500.0,0.00024931,2]
[341851150,1731253848664,-4489.52,0.00024931,2]
[341851151,1731253848674,-500.0,0.00024931,2]
[341851152,1731253848683,-401.77553893,0.00024931,2]
[341851153,1731253848695,-500.0,0.00024931,2]
[341851154,1731253848705,-500.0,0.00024931,2]
[341851155,1731253848714,-1008.94,0.00024931,2]
[341851156,1731253848724,-500.0,0.00024931,2]
[341851157,1731253848733,-500.0,0.00024931,2]
[341851158,1731253848742,-500.0,0.00024931,2]
[341851159,1731253848752,-520.3245519,0.00024931,2]
[341851160,1731253848761,-706.19,0.00024931,2]
[341851161,1731253848770,-794.89,0.00024931,2]